Cogmind - Beta 13 @@@ ROGUE MODE // 2024.03.30 @ 00:27:03 Player: Sloweel Result: Destroyed by D-53 Grenadier with Mini Grenade Launcher Performance ------------- Evolutions (1) 500 Regions Visited (4) 800 Robots Destroyed (51) 255 Value Destroyed (1384) 1384 Prototype IDs (6) 120 Alien Tech Used (0) 0 Bonus (19) 19 TOTAL SCORE: 3078 Bonus ------- High Alert Combat Kills 19 Cogmind --------- Core Integrity 0/400 Matter 205/300 Energy 254/265 System Corruption 4% Temperature Cool (30) Movement Walking (190) Ox1 Location -9/Mines Parts ------- > --- POWER (1) -------- Improved Ion Engine > --- PROPULSION (3) --- Aluminum Leg Aluminum Leg > --- UTILITY (3) ------ Medium Storage Unit Signal Interpreter Light Armor Plating > --- WEAPON (2) ------- Particle Gun Heavy Assault Rifle > --- INVENTORY (10) --- Improved Ion Engine Improved Aluminum Leg Improved Aluminum Leg Structural Scanner Particle Gun Missile Launcher Katana Peak State ------------ > --- POWER ------------ Improved Ion Engine > --- PROPULSION ------- Aluminum Leg Aluminum Leg Improved Aluminum Leg > --- UTILITY ---------- Medium Storage Unit Sensor Array Signal Interpreter > --- WEAPON ----------- Particle Gun Missile Launcher > --- INVENTORY -------- Improved Ion Engine Aluminum Leg Improved Aluminum Leg Improved Aluminum Leg Structural Scanner Light Armor Plating Particle Gun Heavy Assault Rifle Katana [Rating: 15] Favorites ----------- Power Ion Engine Engine Ion Engine Power Core Light Nuclear Core Propulsion Aluminum Leg Leg Aluminum Leg Utility Medium Storage Unit Device Sensor Array Storage Medium Storage Unit Processor Signal Interpreter Protection Light Armor Plating Weapon Particle Gun Energy Gun Particle Gun Ballistic Gun Assault Rifle Launcher Missile Launcher Build | -11 -10 -10 -9 -9 ------- Run | Yrd Mat Min Mat Min Slots Evolved 2 | . . . 2 . Power . | . . . . . Propulsion 1 | . . . 1 . Utility 1 | . . . 1 . Weapon . | . . . . . Parts Attached 69 | 7 18 1 34 9 Power 7 | 1 4 . 2 . Engine 6 | 1 3 . 2 . Core 1 | . 1 . . . Reactor . | . . . . . Propulsion 27 | 2 5 . 16 4 Treads . | . . . . . Leg 27 | 2 5 . 16 4 Wheel . | . . . . . Hover . | . . . . . Flight . | . . . . . Utility 19 | 2 4 1 10 2 Device 14 | 1 3 1 8 1 Storage 3 | 1 1 . 1 . Processor 1 | . . . 1 . Hackware . | . . . . . Protection 1 | . . . . 1 Artifact . | . . . . . Weapon 16 | 2 5 . 6 3 Energy Gun 9 | 1 4 . 3 1 Energy Cannon . | . . . . . Ballistic Gun 6 | 1 1 . 3 1 Ballistic Cannon . | . . . . . Launcher 1 | . . . . 1 Special Weapon . | . . . . . Impact Weapon . | . . . . . Slashing Weapon . | . . . . . Piercing Weapon . | . . . . . Special Melee Weapon . | . . . . . Unidentified Prototypes . | . . . . . Parts Lost 12 | . 2 . 5 5 Power 1 | . 1 . . . Propulsion 6 | . . . 4 2 Utility 2 | . . . . 2 Weapon 3 | . 1 . 1 1 Highest Loss Streak 3 | . 1 . 2 3 To Critical Strikes . | . . . . . Average Slot Usage (%) 99 | . 100 100 98 93 Engine 12 | . 12 14 11 11 Leg 30 | . 28 28 32 33 Device 12 | . 14 14 11 4 Storage 12 | . 14 14 11 11 Processor 5 | . . . 10 11 Energy Gun 19 | . 19 28 16 18 Ballistic Gun 5 | . 8 . 4 1 Naked Turns . | . . . . . Heaviest Build 27 | 12 21 21 25 27 Greatest Support 33 | 20 26 23 33 33 Greatest Overweight (x) 1 | . . . 1 . Average Overweight (x) . | . . . . . Largest Inventory Capacity 10 | 8 10 10 10 10 Average Capacity 9 | 7 8 10 10 10 Most Carried 10 | 5 10 10 10 10 Average Carried 8 | 3 7 9 9 9 Final Capacity 10 | 8 10 10 10 10 Final Carried 10 | 4 10 10 10 7 Class Distribution -------------------- 52% | Mutant 47% | Scavenger-Mutant Dominant Class ---------------- Mutant | -10/Materials Mutant | -10/Mines Scavenger-Mutant | -9/Materials Scavenger-Mutant | -9/Mines Resources | -11 -10 -10 -9 -9 ----------- Run | Yrd Mat Min Mat Min Matter Collected 1008 | 207 333 . 425 43 Remotely . | . . . . . Salvage Created 1766 | 43 416 . 1143 164 Parts 107 | 4 27 . 66 10 Haulers Intercepted 2 | . . . 2 . Recyclers Shooed 1 | . . . 1 . Parts Field Recycled . | . . . . . Retrieved Matter . | . . . . . Parts Self-Destructed . | . . . . . Prevented . | . . . . . Kills | -11 -10 -10 -9 -9 ------- Run | Yrd Mat Min Mat Min Combat Hostiles Destroyed 46 | . 13 . 25 8 Guns 38 | . 13 . 23 2 AOE 6 | . . . . 6 Classes Destroyed 11 | 1 4 . 3 3 Builder 1 | . 1 . . . Tunneler 2 | 2 . . . . Hauler 2 | . . . 2 . Recycler 1 | . . . . 1 Watcher 5 | . 2 . 3 . Swarmer 9 | . 6 . 3 . Grunt 22 | . 7 . 14 1 Brawler 1 | . . . 1 . Duelist 1 | . . . . 1 Sentry 7 | . . . 7 . Assembled 6 | . . . . 6 Best Kill Streak 7 | 1 4 . 4 7 Combat Bots Only 6 | . 4 . 4 6 Max Kills in Single Turn 3 | 1 1 . 1 3 Gunslinging . | . . . . . Exploded 3 | . . . . 3 Melee . | . . . . . Uniques/NPCs Destroyed . | . . . . . Combat | -11 -10 -10 -9 -9 -------- Run | Yrd Mat Min Mat Min Hostile Shots Fired 261 | . 90 . 143 28 Missed 69 | . 24 . 40 5 Damage Taken 2768 | . 662 . 1409 697 Core 549 | . 139 . 264 146 Absorbed by Shields . | . . . . . Core Remaining (%) 72 | 100 . 44 . . Volleys Fired 157 | 5 42 . 98 12 Largest 2 | 2 2 . 2 2 Hottest 130 | 60 130 . 130 130 Shots Fired 309 | 10 84 . 195 20 Gun 305 | 10 84 . 195 16 Cannon . | . . . . . Launcher 4 | . . . . 4 Special . | . . . . . Kinetic 97 | 5 38 . 49 5 Thermal 208 | 5 46 . 146 11 Explosive 4 | . . . . 4 Electromagnetic . | . . . . . Robot Hit Streak 16 | 3 6 . 16 5 Robot Miss Streak 5 | 2 4 . 5 2 Penetration Max . | . . . . . Secondary Targets 2 | . . . 2 . Max Gunslinging Chain 1 | . . . 1 . Shots Hit Robots 209 | 5 47 . 145 12 Core Hits 88 | 2 23 . 48 15 Critical Kills . | . . . . . Critical Parts Destroyed . | . . . . . Critical Strikes 6 | . 1 . 5 . Burn 6 | . 1 . 5 . Melee Attacks . | . . . . . Impact . | . . . . . Slashing . | . . . . . Piercing . | . . . . . Sneak Attacks . | . . . . . Combat Hostiles . | . . . . . Follow-up Attacks . | . . . . . Damage Inflicted 3556 | 64 711 8 2123 650 Guns 3022 | 64 666 . 2102 190 Cannons . | . . . . . Explosions 460 | . . . . 460 Melee . | . . . . . Ramming 74 | . 45 8 21 . Kinetic 806 | 43 262 . 460 41 Thermal 2216 | 21 404 . 1642 149 Explosive 460 | . . . . 460 Electromagnetic . | . . . . . Impact . | . . . . . Slashing . | . . . . . Piercing . | . . . . . Highest Corruption 4 | . . . 4 4 Average Corruption 4 | . . . 4 4 Corruption Purged . | . . . . . Corruption Blocked . | . . . . . Effects 3 | . . . 3 . Message Errors 1 | . . . 1 . Matter Fused 1 | . . . 1 . Energy Discharges 1 | . . . 1 . Overload Shots . | . . . . . Overflow Damage 47 | . . . . 47 Projectiles . | . . . . . Explosions 47 | . . . . 47 Melee . | . . . . . Knockbacks 1 | . 1 . . . Impact 1 | . 1 . . . Kinetic . | . . . . . Secondary . | . . . . . Self-Inflicted Damage 71 | . . . . 71 Shots 2 | . . . . 2 Rammed . | . . . . . Targets Rammed 13 | . 9 2 2 . Kicked 13 | . 9 2 2 . Crushed . | . . . . . Highest Temperature 388 | . 388 . 240 207 Average Temperature 88 | . 132 . 50 73 Received Heat Transfer 833 | . 222 . 555 56 Effects 2 | . 2 . . . Interference 1 | . 1 . . . Short Circuit 1 | . 1 . . . Siege Activations . | . . . . . Robots Corrupted . | . . . . . Combat Hostiles . | . . . . . Parts Fried . | . . . . . Impact Corruptions . | . . . . . Robots Melted 2 | . . . 2 . Combat Hostiles 2 | . . . 2 . Parts Melted 9 | . 1 . 7 1 Heat Transferred 5773 | 50 1024 . 4366 333 Parts Sabotaged . | . . . . . Parts Stolen . | . . . . . Parts Stripped . | . . . . . Power Chain Reactions . | . . . . . Alert | -11 -10 -10 -9 -9 ------- Run | Yrd Mat Min Mat Min Peak Influence 426 | 10 258 91 426 160 Initial 100 | . 6 46 35 100 Average 131 | 3 104 48 183 128 Maximum Alert Level 2 | . 1 . 2 . Low Security (%) 78 | 100 87 100 62 100 Level 1 19 | . 12 . 33 . Level 2 2 | . . . 4 . Level 3 . | . . . . . Level 4 . | . . . . . Level 5 . | . . . . . High Security . | . . . . . Max Security . | . . . . . Squads Dispatched 7 | . 3 . 4 . Investigation 2 | . 1 . 1 . Extermination . | . . . . . Reinforcement 5 | . 2 . 3 . Assault . | . . . . . Garrison . | . . . . . Intercept . | . . . . . Searches Triggered . | . . . . . Construction Impeded . | . . . . . Haulers Reinforced . | . . . . . Active Scanning Responses . | . . . . . Cargo Convoy Interrupts . | . . . . . Stealth | -11 -10 -10 -9 -9 --------- Run | Yrd Mat Min Mat Min Distress Signals 5 | . 1 . 4 . Communications Jammed . | . . . . . Distress Signals . | . . . . . Times Spotted 69 | . 20 1 34 14 Peak Tracking Total 8 | . 8 2 5 8 Tactical Retreats 2 | . . 1 1 . Traps | -11 -10 -10 -9 -9 ------- Run | Yrd Mat Min Mat Min Traps Triggered 2 | . 1 . 1 . Indirectly . | . . . . . Trap Hack Attempts . | . . . . . Triggered . | . . . . . Disarmed . | . . . . . Reprogrammed . | . . . . . Reused . | . . . . . Traps Extracted . | . . . . . Installed . | . . . . . Triggered . | . . . . . Machines | -11 -10 -10 -9 -9 ---------- Run | Yrd Mat Min Mat Min Machines Disabled . | . . . . . Max in Single Turn . | . . . . . Machines Repaired . | . . . . . Machines Dismantled . | . . . . . Machines Sabotaged . | . . . . . Overloaded Fab Kills . | . . . . . Hacking | -11 -10 -10 -9 -9 --------- Run | Yrd Mat Min Mat Min Machines Accessed 15 | . 8 . 7 . Terminals 12 | . 7 . 5 . Fabricators . | . . . . . Repair Stations . | . . . . . Recycling Units 2 | . 1 . 1 . Scanalyzers 1 | . . . 1 . Garrison Access . | . . . . . Total Hacks 40 | . 22 . 18 . Successful 23 | . 12 . 11 . Failed 17 | . 10 . 7 . Catastrophic 3 | . 2 . 1 . Database Lockouts . | . . . . . Manual 7 | . 5 . 2 . Terminals 36 | . 21 . 15 . Fabricators . | . . . . . Repair Stations . | . . . . . Recycling Units 2 | . 1 . 1 . Scanalyzers 2 | . . . 2 . Garrison Access . | . . . . . Terminal Hacks 16 | . 9 . 7 . Record 1 | . . . 1 . Prototype ID Bank 4 | . 2 . 2 . Branch Access Points 2 | . 1 . 1 . Alert Level 1 | . . . 1 . Unreport Threat 2 | . 1 . 1 . Locate Traps 2 | . 1 . 1 . Recall Investigation 1 | . 1 . . . Hauler Manifests 1 | . 1 . . . Zone Layout 2 | . 2 . . . Fabricator Hacks . | . . . . . Repair Station Hacks . | . . . . . Recycling Unit Hacks 2 | . 1 . 1 . Report Inventory 2 | . 1 . 1 . Scanalyzer 2 | . . . 2 . Insert Component 1 | . . . 1 . Analyze 1 | . . . 1 . Garrison Access Hacks . | . . . . . Unauthorized Hacks 2 | . 1 . 1 . Terminals 2 | . 1 . 1 . Assimilate 2 | . 1 . 1 . Fabricators . | . . . . . Repair Stations . | . . . . . Recycling Units . | . . . . . Scanalyzers . | . . . . . Garrison Access . | . . . . . Data Cores Recovered . | . . . . . Used . | . . . . . Hacking Detections 11 | . 6 . 5 . Full Trace Events 1 | . 1 . . . Feedback Events . | . . . . . Feedback Blocked . | . . . . . Robot Schematics Acquired . | . . . . . Robots Built . | . . . . . Authchips . | . . . . . Time . | . . . . . Total Robot Build Rating . | . . . . . Part Schematics Acquired 1 | . . . 1 . Parts Built . | . . . . . Authchips . | . . . . . Time . | . . . . . Total Part Build Rating . | . . . . . Parts Repaired . | . . . . . Time . | . . . . . Parts Recycled . | . . . . . Recycled Matter . | . . . . . Retrieved Matter . | . . . . . Retrieved Components . | . . . . . Parts Scanalyzed 1 | . . . 1 . Part Schematics Acquired 1 | . . . 1 . Parts Damaged . | . . . . . Bothacking | -11 -10 -10 -9 -9 ------------ Run | Yrd Mat Min Mat Min Used RIF Installer . | . . . . . Robots Hacked . | . . . . . Non-combat . | . . . . . Combat . | . . . . . Robot Hacks Applied . | . . . . . Relay Couplers Released . | . . . . . Fabnet Peak Effective % . | . . . . . Robots Rewired . | . . . . . Allies Hacked . | . . . . . Hacks Repelled . | . . . . . Allies | -11 -10 -10 -9 -9 -------- Run | Yrd Mat Min Mat Min Total Allies 1 | . . 1 . . Largest Group 1 | . . 1 . . Highest-Rated Group 31 | . . 31 . . Highest-Rated Ally 31 | . . 31 . . Total Orders . | . . . . . Ally Attacks . | . . . . . Total Damage . | . . . . . Kills . | . . . . . Allies Corrupted . | . . . . . Allies Melted . | . . . . . Intel | -11 -10 -10 -9 -9 ------- Run | Yrd Mat Min Mat Min Robot Analysis Total . | . . . . . Derelict Logs Recovered 1 | . . 1 . . Drone Launches . | . . . . . Drone Recoveries . | . . . . . Exploration | -11 -10 -10 -9 -9 ------------- Run | Yrd Mat Min Mat Min Turns Passed 3198 | 98 1143 388 1490 79 Spaces Moved 1855 | 60 727 295 744 29 Core 4 | 4 . . . . Treads . | . . . . . Legs 1851 | 56 727 295 744 29 Wheels . | . . . . . Hover . | . . . . . Flight . | . . . . . Fastest Speed 50 | 50 120 120 120 120 Average Speed 120 | 115 120 120 120 120 Slowest Speed 190 | 120 120 120 190 120 Overloaded Moves . | . . . . . Propulsion Burnouts . | . . . . . Robots Hopped . | . . . . . Cave-ins Triggered . | . . . . . Exploration Rate (%) 47 | 6 94 64 69 6 Regions Visited 4 Branch Regions 2 Pre-discovered Areas 1 | . . 1 . . Known Exits Taken 2 | . 1 . 1 . Unknown Exits Taken 2 | 1 . 1 . . Scrap Searched . | . . . . . Spaces Dug 11 | . . . . 11 Terrain Destroyed 45 | . . . . 45 Melee . | . . . . . Projectile . | . . . . . AOE 45 | . . . . 45 Terrain Rammed . | . . . . . Walls Destroyed . | . . . . . Machines Disabled . | . . . . . Actions | -11 -10 -10 -9 -9 --------- Run | Yrd Mat Min Mat Min Total 2527 | 76 914 328 1153 56 Wait 367 | . 92 29 246 . Move 1851 | 59 726 294 743 29 Hop . | . . . . . Pick Up 28 | 5 11 1 9 2 Fast Attach 15 | 6 7 . 2 . Attach 12 | 1 2 . 5 4 Detach 1 | . 1 . . . Swap 42 | . 9 1 27 5 Drop 41 | . 15 1 21 4 Fire 157 | 5 42 . 98 12 Melee . | . . . . . Ram . | . . . . . Kick 13 | . 9 2 2 . Crush . | . . . . . Escape Stasis . | . . . . . Rewire . | . . . . . Trap . | . . . . . Miscellaneous . | . . . . . Route ------- -11/Scrapyard -10/Materials (discovered 5 exits: *Mat x2 / *Min x2 / [*Sub]) -10/Mines (discovered 2 exits: *Mat x2) -9/Materials (discovered 4 exits: *Mat x3 / *Min) -9/Mines History --------- Turn | Location | Event 4 | -11/Scrapyard | Discovered new exit (range 16) 99 | -11/Scrapyard | Entered Materials 303 | -10/Materials | Build established: Mutant 454 | -10/Materials | Discovered new exit (range 16) 548 | -10/Materials | Discovered new exit (range 7) 755 | -10/Materials | Core integrity fell below 50% 804 | -10/Materials | Discovered new exit (range 5) 822 | -10/Materials | Identified exit to Mines 958 | -10/Materials | Discovered new exit (range 14) 1064 | -10/Materials | Build established: Scavenger-Mutant 1096 | -10/Materials | Discovered new exit (range 12) 1242 | -10/Materials | Entered Mines 1315 | -10/Mines | Received a Mining Laser from a helpful Derelict 1377 | -10/Mines | Build established: Mutant 1468 | -10/Mines | Discovered new exit (range 14) 1540 | -10/Mines | Discovered new exit (range 6) 1551 | -10/Mines | Learned location of Zion (-7) 1578 | -10/Mines | Received a Rocket Launcher from a helpful Derelict 1630 | -10/Mines | Entered Materials 1630 | -9/Materials | Evolved 2 slots: Propulsion x1, Utility x1 1755 | -9/Materials | Discovered new exit (range 6) 1760 | -9/Materials | Identified exit to Mines 1998 | -9/Materials | Build established: Scavenger-Mutant 2313 | -9/Materials | Discovered new exit (range 3) 2314 | -9/Materials | Identified exit to Materials 2640 | -9/Materials | Discovered exit to Materials (range 4) 2677 | -9/Materials | Core integrity fell below 50% 2957 | -9/Materials | Discovered exit to Materials (range 12) 3120 | -9/Materials | Entered Mines 3144 | -9/Mines | Assembled infested the area 3149 | -9/Mines | Assisted by a Guerilla fighting off Assembled 3190 | -9/Mines | Core integrity fell below 20% 3199 | -9/Mines | Destroyed by D-53 Grenadier with Mini Grenade Launcher Last Messages --------------- 03180_ as-38039 destroyed. 03180_ Knocked back. 03181_ The unstable cave ceiling collapses. 03182_ Destroyed Asb. Hover Unit. 03182_ as-52405 destroyed. 03182_ Destroyed Asb. Hover Unit. 03182_ as-68507 destroyed. 03182_ as-50039 destroyed. 03184_ as-05131 destroyed. 03184_ as-54823 destroyed. 03187_ The unstable cave ceiling collapses. 03187_ as-91646 destroyed. 03187_ as-17726 destroyed. 03190_ The unstable cave ceiling collapses. 03191_ Aluminum Leg destroyed. 03193_ Sensor Array destroyed. 03193_ R-06 Scavenger collects Hvy. Hammer. 03195_ Imp. Aluminum Leg destroyed. 03197_ The unstable cave ceiling collapses. 03199_ R-06 Scavenger destroyed. Map ----- +----------------------------------------------------+ | | | | | | | | | | | | | | | ?????????????????????????????????????????????????? | | ?????????????????????????????????????????????????? | | ?????????????????????????????????????????????????? | | ?????????????????????????????????????????????????? | | ?????????????????????????????????????????????????? | | ?????????????????????????????????????????????????? | | ?????????????????????????????????????????????????? | | ?????????????????????????######??# ?????????????? | | ?????????????? ?????????? # #?# ?????????????? | | ??????????????? ???###### ## ?????????????? | | ???????????????? ### / d ??????????????? | | ????????????????? % %%= ????????????????? | | ??????????????????# % *= #?????????????????? | | ??????????????????## d # #?????????????????? | | ??????????????????# #??????????????????? | | ??????????????????# #??????????????????? | | ?????????????????## ##??????????????????? | | ?????????????????# #??????????????????? | | ??????????????????# @ #???????????????????? | | ??????????????????# # #??????????????????? | | ??????????????????## #??????????????????? | | ???????????????????## ##??????????????????? | | ????????????????????# ##???????????????????? | | ???????????????????# ####????????????????????? | | ???????????????????# ????????????????????????? | | ???????????????????#### ????????????????????????? | | ??????????????????????## ????????????????????????? | | ???????????????????????# ????????????????????????? | | ??????????????????????? ????????????????????????? | | ??????????????????????? ????????????????????????? | | ??????????????????????? ?????????????????????????? | | ??????????????????????? ?????????????????????????? | | ??????????????????????? ?????????????????????????? | | ??????????????????????? ?????????????????????????? | | ?????????????????????????????????????????????????? | | ?????????????????????????????????????????????????? | | ?????????????????????????????????????????????????? | | ?????????????????????????????????????????????????? | | ?????????????????????????????????????????????????? | | ?????????????????????????????????????????????????? | | ?????????????????????????????????????????????????? | | ?????????????????????????????????????????????????? | | ?????????????????????????????????????????????????? | +----------------------------------------------------+ Best States ------------- Heat Dissipation 50 Energy Generation 14 Energy Capacity 265 Matter Stores 300 Matter Capacity 300 Sight Range 16 Robot Scan Range 14 Terrain Scan Range 16 Terrain Scan Density 10 Evasion (%) 55 Item Schematics ----------------- Imp. Aluminum Leg | -9/Materials | Scanalyzed Robot Schematics ------------------ None Fabricated ------------ Nothing Alien Tech Used ----------------- None Achievements -------------- True Hacker Challenges ------------ None Game ------ Seed GlidesysBoreShredder Manual? 0 Play Time 00:44:31 Cumulative 11.1 hours Start 2024.03.29 @ 23:43:48 End 2024.03.30 @ 00:27:03 Sessions 1 Manual Loads 0 Difficulty Rogue Special Mode None Game No. 5 Rogue 5 Adventurer 0 Explorer 0 Win Type - Total 0 Types 0/0/0/0/0/0/0/0/0 Lore% 14 Gallery% 20 Achievement% 17 Wizard Run 0 Options --------- Layout 2 ASCII 0 Keyboard 0 Movement Numpad Keybinds 0 Fullscreen 2 Font 32/Tamsyn Map View 50x44 Zoom Use 0% Tactical HUD 1 Map Filters NONE Filters NONE Steam 1 RUN: acca2f80-6d7a-4f8b-bba6-ffaf4aa61370